bitfinex/quotes_BTCUSD_20250316
["timestamp","ask_amount","ask_price","bid_price","bid_amount"]
[1742162507264,0.00029292,83010.0,83009.0,0.204796]
[1742162508673,0.00029292,83010.0,83009.0,1.704796]
[1742162509256,0.00029292,83010.0,83007.0,0.192753]
[1742162509456,0.00029292,83010.0,82990.0,0.01]
[1742162509457,0.012048,82999.0,82990.0,0.01]
[1742162509723,0.20484,82991.0,82990.0,0.01]
[1742162510213,0.21018474,82991.0,82990.0,0.01]
[1742162510867,0.00534474,82991.0,82990.0,0.01]
[1742162511284,0.19813674,82991.0,82989.0,0.193134]
[1742162511481,0.19813674,82991.0,82989.0,0.000338]
[1742162511650,0.21018574,82991.0,82990.0,0.002338]
[1742162511846,0.51018574,82991.0,82990.0,0.002338]
[1742162512045,0.59298574,82991.0,82990.0,0.002338]
[1742162512251,0.59298574,82991.0,82990.0,0.005338]
[1742162512470,0.59298574,82991.0,82990.0,0.003338]
[1742162512689,0.59298574,82991.0,82990.0,0.000338]
[1742162513355,0.59298574,82991.0,82990.0,0.010338]
[1742162513737,0.63998574,82991.0,82990.0,0.010338]
[1742162513977,0.77518574,82991.0,82990.0,0.010338]
[1742162514845,0.83972659,82991.0,82990.0,0.010338]
[1742162516010,0.85861595,82991.0,82990.0,0.010338]
[1742162516410,0.78972659,82991.0,82990.0,0.010338]
[1742162517405,0.83972659,82991.0,82990.0,0.010338]
[1742162517810,0.77518574,82991.0,82990.0,0.010338]
[1742162518634,0.82518574,82991.0,82990.0,0.010338]
[1742162518997,0.77518574,82991.0,82990.0,0.010338]
[1742162519332,0.82518574,82991.0,82990.0,0.010338]
[1742162519557,0.77518574,82991.0,82990.0,0.010338]
[1742162520417,0.82518574,82991.0,82990.0,0.010338]
[1742162520619,0.77518574,82991.0,82990.0,0.010338]
[1742162522131,0.83972659,82991.0,82990.0,0.010338]
[1742162522680,0.78972659,82991.0,82990.0,0.010338]
[1742162522881,0.83972659,82991.0,82990.0,0.010338]
[1742162522993,0.78972659,82991.0,82990.0,0.010338]
[1742162523621,0.85861571,82991.0,82990.0,0.010338]
[1742162523852,0.80861571,82991.0,82990.0,0.010338]
[1742162525658,0.85861571,82991.0,82990.0,0.010338]
[1742162525874,0.559851,82987.0,82986.0,1e-06]
[1742162526069,0.559851,82987.0,82917.0,0.10776169]
[1742162526070,0.65390885,82980.0,82979.0,1e-06]
[1742162526417,0.70660404,82980.0,82979.0,1e-06]
[1742162526825,0.72549814,82980.0,82979.0,1e-06]
[1742162527233,0.70660404,82980.0,82979.0,1e-06]
[1742162527437,0.70660404,82980.0,82935.0,0.012057]
[1742162527438,0.69455304,82980.0,82935.0,0.012057]
[1742162527641,0.192912,82940.0,82936.0,0.192919]
[1742162527851,0.204976,82936.0,82935.0,0.00041307]
[1742162528277,0.21027119,82936.0,82935.0,0.00041307]
[1742162529444,0.21027119,82936.0,82935.0,0.00341307]
[1742162530219,0.22916862,82936.0,82935.0,0.00341307]
[1742162530601,0.22916862,82936.0,82935.0,0.00041307]
[1742162530827,0.22916862,82936.0,82935.0,0.00141307]
[1742162531246,0.21027119,82936.0,82935.0,0.00141307]
[1742162533359,0.00529519,82936.0,82935.0,0.20639207]
[1742162533563,0.0009894,82953.0,82951.0,0.192883]
[1742162533763,0.1938694,82953.0,82950.0,0.192886]
[1742162533966,0.00500323,82952.0,82950.0,0.204941]
[1742162534161,0.00500323,82952.0,82949.0,0.204944]
[1742162534362,0.192898,82945.0,82940.0,0.204964]
[1742162534562,0.204946,82949.0,82942.0,0.20496]
[1742162534772,0.192892,82948.0,82945.0,0.192897]
[1742162534974,0.19789523,82948.0,82945.0,0.192897]
[1742162535169,0.00500323,82948.0,82946.0,0.192896]
[1742162535372,0.00500323,82948.0,82947.0,0.192894]
[1742162535571,0.02389904,82948.0,82947.0,0.192894]
[1742162536046,0.19291,82941.0,82936.0,0.0807]
[1742162536248,0.012056,82943.0,82935.0,0.00075107]
[1742162536454,0.204976,82936.0,82935.0,0.00075107]
[1742162536655,0.00500323,82942.0,82935.0,0.01280807]
[1742162536842,0.00501288,82936.0,82935.0,0.01280807]
[1742162537100,0.3,82943.0,82940.0,0.19291]
[1742162537323,0.01889716,82941.0,82940.0,0.19291]
[1742162537526,0.192907,82942.0,82939.0,0.192912]
[1742162538533,0.192907,82942.0,82940.0,0.001]
[1742162538941,0.192907,82942.0,82939.0,0.192912]
[1742162539165,0.192907,82942.0,82939.0,0.193912]
[1742162539919,0.20496,82943.0,82939.0,0.193912]
[1742162540081,0.3,82947.0,82944.0,0.192898]
[1742162540283,0.0009923,82952.0,82951.0,0.204939]
[1742162540495,0.192871,82957.0,82954.0,0.192875]
[1742162540702,0.012054,82958.0,82951.0,0.012055]
[1742162541068,0.19289,82949.0,82943.0,0.204958]
[1742162541306,0.192908,82941.0,82938.0,0.192913]
[1742162541563,0.192912,82940.0,82937.0,0.192917]
[1742162541767,0.204976,82936.0,82935.0,0.00075107]
[1742162542409,0.20999818,82936.0,82935.0,0.00075107]
[1742162543112,0.19794118,82936.0,82935.0,0.00075107]
[1742162543321,0.20999818,82936.0,82935.0,0.00075107]
[1742162543941,0.21150547,82936.0,82935.0,0.00075107]
[1742162544158,0.67020279,82936.0,82935.0,7e-08]
[1742162544496,0.85925518,82936.0,82935.0,7e-08]
[1742162544711,0.85925518,82936.0,82914.0,0.0003382]
[1742162544712,0.505028,82915.0,82914.0,0.0003382]
[1742162544944,0.3,82915.0,82914.0,0.0003382]
[1742162545169,0.51003363,82915.0,82914.0,0.0003382]
[1742162545380,0.30500563,82915.0,82914.0,0.0003382]
[1742162545589,0.31706563,82915.0,82914.0,0.0003382]
[1742162545795,0.00500563,82915.0,82914.0,0.0123982]
[1742162545999,0.22893722,82915.0,82914.0,0.0003382]
[1742162546219,0.22543938,82915.0,82914.0,0.0003382]
[1742162546427,0.23037591,82915.0,82914.0,0.0003382]
[1742162546929,0.53037591,82915.0,82914.0,0.0003382]
[1742162547138,0.64700455,82915.0,82914.0,0.0003382]
[1742162547343,0.50996455,82915.0,82914.0,0.0003382]
[1742162547546,0.64708455,82915.0,82914.0,0.0003382]
[1742162548366,0.65932561,82915.0,82914.0,0.0003382]
[1742162549083,0.50996455,82915.0,82914.0,0.0003382]
[1742162549423,0.00493655,82915.0,82914.0,0.1933092]
[1742162549620,0.20996455,82915.0,82914.0,0.0003382]
[1742162549822,0.205028,82915.0,82914.0,0.0003382]
[1742162550030,0.20996173,82915.0,82914.0,0.0003382]
[1742162550253,0.02583735,82915.0,82914.0,0.0003382]
[1742162550425,0.02783735,82915.0,82914.0,0.2053692]
[1742162550627,0.02583735,82915.0,82914.0,0.2053692]
[1742162550863,0.02583735,82915.0,82914.0,0.2514692]
[1742162551066,0.012058,82928.0,82919.0,0.192959]
[1742162551262,0.205028,82915.0,82914.0,0.0003382]
[1742162551435,0.21148247,82915.0,82914.0,0.0003382]
[1742162551640,0.34789464,82915.0,82914.0,0.0003382]
[1742162552171,0.00494664,82915.0,82914.0,0.2053692]
[1742162552580,0.012059,82920.0,82914.0,0.0003382]
[1742162552787,0.205028,82915.0,82914.0,0.0003382]
[1742162553426,0.20997415,82915.0,82914.0,0.0003382]
[1742162554411,0.00494615,82915.0,82914.0,0.2053692]
[1742162554616,0.00494615,82915.0,82914.0,0.1933092]
[1742162554794,0.4156,82915.0,82914.0,0.1933082]
[1742162554996,0.42054615,82915.0,82914.0,0.1933082]
[1742162555202,0.43944813,82915.0,82914.0,0.1933082]
[1742162555616,0.43944813,82915.0,82914.0,0.0003382]
[1742162556642,0.63241613,82915.0,82914.0,0.0003382]
[1742162557276,0.62557415,82915.0,82914.0,0.0003382]
[1742162557451,0.76417415,82915.0,82914.0,0.0003382]
[1742162557791,0.62557415,82915.0,82914.0,0.0003382]
[1742162557995,0.42054615,82915.0,82914.0,0.2053692]
[1742162558411,0.42054615,82915.0,82914.0,0.0003382]
[1742162558642,0.61351415,82915.0,82914.0,0.0003382]
[1742162559096,0.42054615,82915.0,82914.0,0.0003382]
[1742162559643,0.61451415,82915.0,82914.0,0.0003382]
[1742162559869,0.62657415,82915.0,82914.0,0.0003382]
[1742162560095,0.62757415,82915.0,82914.0,0.0003382]
[1742162560296,0.64647698,82915.0,82914.0,0.0003382]
[1742162560708,0.64447698,82915.0,82914.0,0.0003382]
[1742162561329,0.62557415,82915.0,82914.0,0.0003382]
[1742162562786,0.42054615,82915.0,82914.0,0.0003382]
[1742162562951,0.62557415,82915.0,82914.0,0.0003382]
[1742162563982,0.42054615,82915.0,82914.0,0.3306692]
[1742162564351,0.42054615,82915.0,82914.0,1.8306692]
[1742162564911,0.4156,82915.0,82914.0,1.8306692]
[1742162565864,0.4156,82915.0,82914.0,1.8316692]
[1742162567181,0.0189022,82918.0,82917.0,0.205024]
[1742162567381,0.00098,82931.0,82930.0,0.204991]
[1742162567599,0.00098,82931.0,82930.0,0.285191]
[1742162567810,0.0001692,82935.0,82934.0,0.204981]
[1742162568215,0.00491517,82935.0,82934.0,0.204981]
[1742162569199,0.00491517,82935.0,82927.0,0.012058]
[1742162569200,0.01697217,82935.0,82923.0,0.0802]
[1742162569473,0.012057,82934.0,82931.0,0.19293]
[1742162569665,0.204981,82934.0,82931.0,0.192931]
[1742162569872,0.00479914,82933.0,82931.0,0.192931]
[1742162570045,0.00479914,82933.0,82932.0,0.192929]
[1742162570259,0.0001692,82935.0,82932.0,0.204987]
[1742162570444,0.0001692,82935.0,82934.0,0.204981]
[1742162570840,0.02386621,82935.0,82934.0,0.204981]
[1742162571661,0.02386621,82935.0,82934.0,0.251681]
[1742162572013,0.00496815,82935.0,82934.0,0.253681]
[1742162572219,0.00496815,82935.0,82934.0,0.0487]
[1742162572427,0.62554715,82935.0,82934.0,0.002]
[1742162572638,0.42056815,82935.0,82934.0,0.206981]
[1742162573255,0.42056815,82935.0,82934.0,0.208981]
[1742162573404,0.42056815,82935.0,82934.0,0.206981]
[1742162573619,0.42056815,82935.0,82934.0,0.209981]
[1742162576196,0.43946577,82935.0,82934.0,0.209981]
[1742162577387,0.43946577,82935.0,82934.0,0.005]
[1742162577595,0.63238777,82935.0,82934.0,0.005]
[1742162577771,0.43946577,82935.0,82934.0,0.005]
[1742162578320,0.61349015,82935.0,82934.0,0.005]
[1742162578672,0.62554715,82935.0,82934.0,0.005]
[1742162579539,0.62554715,82935.0,82934.0,0.003]
[1742162579730,0.61349015,82935.0,82934.0,0.003]
[1742162579934,0.42056815,82935.0,82932.0,0.192928]
[1742162580054,0.42056815,82935.0,82933.0,0.192926]
[1742162580258,0.42056815,82935.0,82934.0,0.204981]
[1742162580727,0.42056815,82935.0,82930.0,0.20499]
[1742162580927,0.62554715,82935.0,82934.0,0.001]
[1742162581573,0.19293,82932.0,82929.0,0.192931]
[1742162581755,0.19293,82932.0,82929.0,0.192935]
[1742162581947,0.19772792,82931.0,82929.0,0.192935]
[1742162582218,0.192943,82926.0,82924.0,0.192947]
[1742162582400,0.192943,82926.0,82919.0,0.192957]
[1742162582401,0.01206,82918.0,82914.0,0.0003382]
[1742162582605,0.608565,82917.0,82914.0,0.0003382]
[1742162582849,0.608565,82917.0,82915.0,0.192967]
[1742162583117,0.608565,82917.0,82914.0,0.0003382]
[1742162583118,0.00479422,82916.0,82914.0,0.0003382]
[1742162583745,0.608568,82915.0,82914.0,0.0003382]
[1742162583874,0.620628,82915.0,82914.0,0.0003382]
[1742162584073,0.62541645,82915.0,82914.0,0.0003382]
[1742162584273,0.62541645,82915.0,82914.0,0.0023382]
[1742162584921,0.42038845,82915.0,82914.0,0.0003382]
[1742162585098,0.42038845,82915.0,82914.0,0.2063692]
[1742162585569,0.4392903,82915.0,82914.0,0.2063692]
[1742162589197,0.3892903,82915.0,82914.0,0.2063692]
[1742162589399,0.3892903,82915.0,82914.0,1.7063692]
[1742162589752,0.38450185,82915.0,82914.0,1.8355692]
[1742162589955,0.01890185,82915.0,82914.0,1.8355692]
[1742162590195,0.01890185,82915.0,82914.0,1.8345692]
[1742162590564,0.01890185,82915.0,82914.0,1.8385692]
[1742162590976,0.3656,82928.0,82927.0,0.204998]
[1742162591361,0.37038434,82928.0,82927.0,0.204998]
[1742162592242,0.37138434,82928.0,82927.0,0.287498]
[1742162592620,0.37138434,82928.0,82927.0,1.787498]
[1742162592917,0.3666,82928.0,82927.0,1.787498]
[1742162593458,0.00041278,82936.0,82934.0,0.204981]
[1742162593669,0.00041278,82936.0,82934.0,0.28868659]
[1742162593887,0.00041278,82936.0,82934.0,0.287481]
[1742162594282,0.00041278,82936.0,82934.0,1.787481]
[1742162594489,0.28507728,82946.0,82945.0,0.204954]
[1742162594696,0.28507728,82946.0,82945.0,0.2050088]
[1742162596172,0.28707728,82946.0,82945.0,0.2050088]
[1742162596373,0.28907728,82946.0,82945.0,0.2050088]
[1742162596584,0.29385966,82946.0,82945.0,0.2050088]
[1742162597724,0.29185966,82946.0,82945.0,1.7050088]
[1742162597933,0.28707728,82946.0,82945.0,1.7050088]
[1742162598242,0.28707728,82946.0,82945.0,0.2050088]
[1742162598447,0.26618198,82946.0,82945.0,0.2050088]
[1742162598767,0.00478238,82946.0,82945.0,0.2050088]
[1742162598929,0.00478238,82946.0,82945.0,5.48e-05]
[1742162599128,0.192892,82948.0,82945.0,5.48e-05]
[1742162599329,0.00478238,82947.0,82946.0,0.192896]
[1742162599573,0.204944,82950.0,82947.0,0.192892]
[1742162599777,0.192884,82952.0,82948.0,0.192891]
[1742162599977,0.26618198,82951.0,82948.0,0.012055]
[1742162600155,0.26618198,82951.0,82949.0,0.192887]
[1742162600797,0.00480868,82950.0,82949.0,0.192887]
[1742162601345,0.00480868,82950.0,82945.0,0.0121108]
[1742162601346,0.204952,82946.0,82945.0,5.48e-05]
[1742162601563,0.20645908,82946.0,82945.0,5.48e-05]
[1742162601771,0.21126747,82946.0,82945.0,5.48e-05]
[1742162602184,0.47744945,82946.0,82945.0,5.48e-05]
[1742162602386,0.47594237,82946.0,82945.0,5.48e-05]
[1742162602590,0.27099037,82946.0,82945.0,5.48e-05]
[1742162602795,0.27099037,82946.0,82945.0,0.2050088]
[1742162603284,0.28507845,82946.0,82945.0,0.2050088]
[1742162603677,0.2918786,82946.0,82945.0,5.48e-05]
[1742162603883,0.8746306,82946.0,82945.0,5.48e-05]
[1742162604862,0.8726306,82946.0,82945.0,5.48e-05]
[1742162605601,0.93547145,82946.0,82945.0,5.48e-05]
[1742162605735,0.93747145,82946.0,82945.0,5.48e-05]
[1742162606333,0.93947145,82946.0,82945.0,5.48e-05]
[1742162607257,0.92057498,82946.0,82945.0,5.48e-05]
[1742162607638,0.92057498,82946.0,82945.0,0.000393]
[1742162608063,0.192956,82921.0,82918.0,0.0003384]
[1742162608271,0.192959,82919.0,82918.0,0.0003384]
[1742162608443,0.205018,82919.0,82918.0,0.0003384]
[1742162608799,0.20982018,82919.0,82918.0,0.0003384]
[1742162609429,0.20982018,82919.0,82918.0,0.00575118]
[1742162609547,0.20982018,82919.0,82918.0,0.00075118]
[1742162610159,0.20982018,82919.0,82918.0,0.00575118]
[1742162610566,0.22872228,82919.0,82918.0,0.00575118]
[1742162610822,0.22872228,82919.0,82918.0,0.00075118]
[1742162611182,0.22872228,82919.0,82918.0,0.00175118]
[1742162612625,0.192968,82915.0,82912.0,0.19040238]
[1742162613067,0.00479259,82914.0,82912.0,0.19040238]
[1742162613290,0.192978,82911.0,82910.0,0.0001692]
[1742162613514,0.45876698,82911.0,82910.0,0.0001692]
[1742162613719,0.47561585,82911.0,82910.0,0.0001692]
[1742162615255,0.9207567,82911.0,82910.0,0.0001692]
[1742162615668,1.0603567,82911.0,82910.0,0.0001692]
[1742162616018,0.9207567,82911.0,82910.0,0.0001692]
[1742162616379,0.9207567,82911.0,82910.0,0.0011692]
[1742162616380,1.0653167,82911.0,82910.0,0.0011692]
[1742162616692,1.0653167,82911.0,82910.0,0.0001692]
[1742162616693,1.04033173,82911.0,82910.0,0.0001692]
[1742162616895,1.04033173,82911.0,82903.0,0.000338]
[1742162616896,0.76932378,82904.0,82903.0,0.000338]
[1742162617099,0.92812445,82904.0,82903.0,0.00046196]
[1742162617949,1.00972445,82904.0,82903.0,0.00046196]
[1742162618103,0.87520445,82904.0,82903.0,0.00046196]
[1742162618324,0.33160285,82903.0,82902.0,2.6e-07]
[1742162618669,0.46693868,82903.0,82902.0,2.6e-07]
[1742162618870,0.60657868,82903.0,82902.0,2.6e-07]
[1742162619008,0.65993468,82903.0,82902.0,2.6e-07]
[1742162619220,0.84957468,82903.0,82902.0,2.6e-07]
[1742162619637,0.67884543,82903.0,82902.0,2.6e-07]
[1742162619892,0.52461385,82897.0,82896.0,2.6e-07]
[1742162620089,0.75054442,82897.0,82896.0,2.6e-07]
[1742162620288,1.56558442,82897.0,82896.0,2.6e-07]
[1742162620527,1.61558442,82897.0,82896.0,2.6e-07]
[1742162620931,1.61570442,82897.0,82896.0,2.6e-07]
[1742162621570,1.7047443,82897.0,82896.0,2.6e-07]
[1742162622184,1.56074442,82897.0,82896.0,2.6e-07]
[1742162622336,1.56378442,82897.0,82896.0,2.6e-07]
[1742162622680,1.61378442,82897.0,82896.0,2.6e-07]
[1742162622878,1.56378442,82897.0,82896.0,2.6e-07]
[1742162623280,1.56078442,82897.0,82896.0,2.6e-07]
[1742162623480,1.56578442,82897.0,82896.0,2.6e-07]
[1742162623679,1.43090442,82897.0,82896.0,2.6e-07]
[1742162623894,1.57078442,82897.0,82896.0,2.6e-07]
[1742162624129,1.56578442,82897.0,82896.0,2.6e-07]
[1742162624707,1.42590442,82897.0,82896.0,2.6e-07]
[1742162624908,1.56570442,82897.0,82896.0,2.6e-07]
[1742162625111,0.193053,82879.0,82875.0,0.18373646]
[1742162625352,0.012066,82874.0,82873.0,0.00029286]
[1742162625535,0.20982057,82874.0,82873.0,0.00029286]
[1742162625881,0.21132904,82874.0,82873.0,0.00029286]
[1742162626128,0.57258698,82874.0,82873.0,0.00029286]
[1742162626336,0.57258698,82874.0,82862.0,6e-08]
[1742162626337,0.012068,82863.0,82862.0,6e-08]
[1742162626549,0.505179,82854.0,82853.0,0.01206957]
[1742162626757,0.65967985,82854.0,82853.0,0.01206957]
[1742162626963,0.65967985,82854.0,82853.0,0.02413857]
[1742162626964,0.2689298,82854.0,82853.0,0.02413857]
[1742162627177,0.2689298,82854.0,82853.0,0.01206957]
[1742162628463,0.2809988,82854.0,82853.0,0.01206957]
[1742162628904,0.2739298,82854.0,82853.0,0.02413857]
[1742162629316,0.2739298,82854.0,82853.0,0.15573857]
[1742162629520,0.2689298,82854.0,82853.0,0.15573857]
[1742162629732,0.26626778,82854.0,82853.0,0.15573857]
[1742162629937,0.26989569,82854.0,82853.0,0.15573857]
[1742162630343,0.26889569,82854.0,82853.0,0.15573857]
[1742162631217,0.26889569,82854.0,82853.0,0.02413857]
[1742162632526,0.26889569,82854.0,82853.0,0.01206957]
[1742162632757,0.26889569,82854.0,82853.0,0.01223887]
[1742162632758,0.28096469,82854.0,82853.0,0.01223887]
[1742162633723,0.47407469,82854.0,82853.0,0.01223887]
[1742162637548,0.48861554,82854.0,82853.0,0.01223887]
[1742162638839,0.48961554,82854.0,82853.0,0.01223887]
[1742162639257,0.49061554,82854.0,82853.0,0.01223887]
[1742162639831,0.205224,82836.0,82835.0,0.0003382]
[1742162640083,0.31615291,82836.0,82835.0,0.0003382]
[1742162640258,0.46187471,82836.0,82835.0,0.0003382]
[1742162640489,0.48079526,82836.0,82835.0,0.0003382]
[1742162641110,0.48079526,82836.0,82835.0,0.2055652]
[1742162641111,0.2756949,82836.0,82835.0,0.2055652]
[1742162641329,0.2756949,82836.0,82835.0,0.0003382]
[1742162641678,0.25677435,82836.0,82835.0,0.0003382]
[1742162641880,0.25777435,82836.0,82835.0,0.1934932]
[1742162642096,0.25677435,82836.0,82835.0,0.2055652]
[1742162642424,0.44992635,82836.0,82835.0,0.0003382]
[1742162642575,0.46199835,82836.0,82835.0,0.0003382]
[1742162643026,0.44992635,82836.0,82835.0,0.0003382]
[1742162643227,0.46199835,82836.0,82835.0,0.0003382]
[1742162644614,0.193164,82831.0,82828.0,0.19317]
[1742162644787,0.193164,82831.0,82827.0,0.012073]
[1742162645008,0.00461631,82830.0,82826.0,0.012073]
[1742162645194,0.00461631,82830.0,82829.0,0.193169]
[1742162645390,0.193162,82832.0,82829.0,0.193169]
[1742162645598,0.00012364,82836.0,82835.0,0.193155]
[1742162645800,0.00012364,82836.0,82835.0,0.286227]
[1742162646201,0.01904291,82836.0,82835.0,1.786227]
[1742162646485,0.01904291,82836.0,82835.0,0.286227]
[1742162648322,0.00012364,82836.0,82835.0,0.205227]
[1742162648558,0.00012364,82836.0,82835.0,0.193155]
[1742162649362,0.00012364,82836.0,82835.0,0.205227]
[1742162651175,0.00407328,82836.0,82835.0,0.205227]
[1742162652446,0.00407328,82836.0,82831.0,0.205236]
[1742162652724,0.00407328,82836.0,82834.0,0.193155]
[1742162653513,0.00407328,82836.0,82835.0,0.205227]
[1742162653674,0.00407328,82836.0,82835.0,0.253527]
[1742162653887,0.00012364,82836.0,82835.0,0.334527]
[1742162655137,0.00012364,82836.0,82835.0,1.834527]
[1742162656022,0.00112364,82836.0,82835.0,1.834527]
[1742162657437,0.00212364,82836.0,82835.0,1.835527]
[1742162657837,0.00212364,82836.0,82835.0,0.3356963]
[1742162658266,0.00212364,82836.0,82835.0,1.8356963]
[1742162658646,0.00212364,82836.0,82835.0,2.1356963]
[1742162658647,6.4e-07,82836.0,82835.0,2.1356963]
[1742162659689,6.4e-07,82836.0,82835.0,2.25527133]
[1742162660292,6.4e-07,82836.0,82835.0,2.29894939]
[1742162660494,0.0003386,82853.0,82852.0,0.626684]
[1742162660857,0.0003386,82853.0,82852.0,0.766764]
[1742162661651,0.0003386,82853.0,82852.0,0.767764]
[1742162662259,0.0003386,82853.0,82852.0,0.766764]
[1742162662466,0.0003386,82853.0,82852.0,0.78389796]
[1742162662467,6e-07,82853.0,82852.0,0.78389796]
[1742162662674,2e-07,82862.0,82861.0,0.205162]
[1742162662881,0.00012423,82862.0,82861.0,0.32786857]
[1742162663085,0.00012423,82862.0,82861.0,0.326662]
[1742162663287,2.3e-07,82862.0,82861.0,0.57763703]
[1742162663489,2.3e-07,82862.0,82861.0,0.87763703]
[1742162663851,2.3e-07,82862.0,82861.0,0.88063703]
[1742162664072,2.3e-07,82862.0,82861.0,0.88563703]
[1742162664481,2.3e-07,82862.0,82861.0,0.901142]
[1742162665362,2.3e-07,82862.0,82861.0,2.401142]
[1742162666321,2.3e-07,82862.0,82861.0,2.52071703]
[1742162666729,2.3e-07,82862.0,82861.0,2.52051703]
[1742162667143,2.3e-07,82862.0,82861.0,2.54005788]
[1742162669934,0.00033903,82862.0,82861.0,2.53505788]
[1742162670141,3e-08,82862.0,82861.0,2.53205788]
[1742162670345,3e-08,82862.0,82861.0,2.53805788]
[1742162670558,3e-08,82862.0,82861.0,2.54405788]
[1742162670804,3e-08,82862.0,82861.0,2.59405788]
[1742162672160,3e-08,82862.0,82861.0,2.264862]
[1742162672512,3e-08,82862.0,82861.0,2.278182]
[1742162673282,3e-08,82862.0,82861.0,2.41729788]
[1742162674285,3e-08,82862.0,82861.0,2.138462]
[1742162674488,3e-08,82862.0,82861.0,2.278302]
[1742162675182,3e-08,82862.0,82861.0,1.716962]
[1742162676320,3e-08,82862.0,82861.0,1.710962]
[1742162676747,3e-08,82862.0,82861.0,1.714962]
[1742162676944,3e-08,82862.0,82861.0,1.708962]
[1742162677325,3e-08,82862.0,82861.0,1.710962]
[1742162677726,3e-08,82862.0,82861.0,1.708962]
[1742162677928,3e-08,82862.0,82861.0,1.711962]
[1742162679120,3e-08,82862.0,82861.0,1.792362]
[1742162681524,3e-08,82862.0,82861.0,1.7925313]
[1742162685930,3e-08,82862.0,82861.0,1.7121313]
[1742162695424,3e-08,82862.0,82861.0,1.7071313]
[1742162696851,3e-08,82862.0,82861.0,2.0071313]
[1742162697200,3e-08,82862.0,82861.0,2.1312313]
[1742162697780,3e-08,82862.0,82861.0,2.25080633]
[1742162697983,3e-08,82862.0,82861.0,2.30080633]
[1742162698388,3e-08,82862.0,82861.0,2.1312313]
[1742162698631,3e-08,82862.0,82861.0,2.2703113]
[1742162699578,3e-08,82862.0,82861.0,2.2663113]
[1742162699791,3e-08,82862.0,82861.0,2.2683113]
[1742162699984,3e-08,82862.0,82861.0,2.2743113]
[1742162701375,3e-08,82862.0,82861.0,2.39388633]
[1742162702135,3e-08,82862.0,82861.0,2.2743113]
[1742162703787,3e-08,82862.0,82861.0,1.7111313]
[1742162704072,0.20516003,82862.0,82861.0,0.0111693]
[1742162704201,0.62076003,82862.0,82861.0,0.0111693]
[1742162707064,0.43919512,82862.0,82861.0,0.0132373]
[1742162707257,0.42027976,82862.0,82861.0,0.2063313]
[1742162708900,0.42027976,82862.0,82861.0,1.7063313]
[1742162709107,0.42027976,82862.0,82861.0,1.6942633]
[1742162709322,0.42027976,82862.0,82861.0,1.5011693]
[1742162709323,0.62543976,82862.0,82861.0,1.5011693]
[1742162709700,0.62543976,82862.0,82861.0,0.0011693]
[1742162710526,0.62076003,82862.0,82861.0,0.0011693]
[1742162710721,0.6254314,82862.0,82861.0,0.0011693]
[1742162710947,0.6254314,82862.0,82861.0,0.0001693]
[1742162711327,0.6264314,82862.0,82861.0,0.0001693]
[1742162711898,0.64534615,82862.0,82861.0,0.0001693]
[1742162712096,0.44018615,82862.0,82861.0,0.2053313]
[1742162713636,0.43918615,82862.0,82861.0,0.2053313]
[1742162714256,0.43918615,82862.0,82861.0,0.0001693]
[1742162714499,0.63227815,82862.0,82861.0,0.0001693]
[1742162715312,0.43918615,82862.0,82861.0,0.0001693]
[1742162715452,0.43918615,82862.0,82861.0,0.1932633]
[1742162715649,0.45125415,82862.0,82861.0,0.0001693]
[1742162715879,0.64434615,82862.0,82861.0,0.0001693]
[1742162716315,0.43918615,82862.0,82861.0,0.0001693]
[1742162716522,0.63227815,82862.0,82861.0,0.0001693]
[1742162716874,0.64434615,82862.0,82861.0,0.0001693]
[1742162717079,0.76614615,82862.0,82861.0,0.0001693]
[1742162717284,1.06177225,82862.0,82861.0,0.0001693]
[1742162717817,0.193138,82843.0,82840.0,0.193142]
[1742162717975,0.193134,82844.0,82841.0,0.19314]
[1742162718180,0.00465372,82842.0,82841.0,0.19314]
[1742162718812,0.193129,82846.0,82842.0,0.193137]
[1742162719014,0.19778472,82845.0,82842.0,0.193137]
[1742162719420,0.19778472,82845.0,82839.0,0.205216]
[1742162719421,0.193134,82844.0,82839.0,0.193145]
[1742162719622,0.205204,82844.0,82841.0,0.19314]
[1742162719829,0.193128,82847.0,82842.0,0.012071]
[1742162720028,0.00465372,82843.0,82842.0,0.205209]
[1742162720260,0.193129,82846.0,82843.0,0.193135]
[1742162720456,0.00465372,82843.0,82842.0,0.193138]
[1742162720676,0.01891738,82843.0,82842.0,0.193138]
[1742162720860,0.023563,82843.0,82842.0,0.195138]
[1742162721070,0.023563,82843.0,82842.0,0.194138]
[1742162721264,0.22877,82843.0,82842.0,0.001]
[1742162721466,0.77657,82843.0,82842.0,0.001]
[1742162721713,0.75765262,82843.0,82842.0,0.001]
[1742162721838,0.55244562,82843.0,82842.0,0.001]
[1742162722044,0.42024562,82843.0,82842.0,0.001]
[1742162722245,0.42024562,82843.0,82842.0,0.206209]
[1742162722750,0.42024562,82843.0,82841.0,0.19314]
[1742162722991,0.43231662,82843.0,82836.0,0.012072]
[1742162723172,0.62545262,82843.0,82842.0,0.002]
[1742162723595,0.62545262,82843.0,82839.0,0.193145]
[1742162724007,0.19315,82837.0,82835.0,0.0001693]
[1742162724208,0.620824,82836.0,82835.0,0.0001693]
[1742162724368,0.62544732,82836.0,82835.0,0.0001693]
[1742162724748,0.6443674,82836.0,82835.0,0.0001693]
[1742162725154,0.4391434,82836.0,82835.0,0.0001693]
[1742162725356,0.4391434,82836.0,82835.0,0.00057815]
[1742162725794,0.4391434,82836.0,82835.0,0.19373315]
[1742162726135,0.4391434,82836.0,82835.0,0.20580515]
[1742162726732,0.4391434,82836.0,82835.0,0.20780515]
[1742162726895,0.4391434,82836.0,82835.0,0.20980515]
[1742162727504,0.4391434,82836.0,82835.0,0.19773315]
[1742162728527,0.4391434,82836.0,82835.0,0.00457815]
[1742162728528,0.6322954,82836.0,82835.0,0.00457815]
[1742162728862,0.6443674,82836.0,82835.0,0.00457815]
[1742162730586,0.4391434,82836.0,82835.0,0.00457815]
[1742162730897,0.4391434,82836.0,82835.0,0.19773315]
[1742162731174,0.4391434,82836.0,82835.0,0.20980515]
[1742162731940,0.0235434,82836.0,82835.0,0.20980515]
[1742162732167,0.00462332,82836.0,82835.0,0.00457815]
[1742162732367,0.00462332,82836.0,82835.0,0.20980515]
[1742162732575,0.608736,82843.0,82839.0,0.193143]
[1742162732792,0.193139,82842.0,82837.0,0.19315]
[1742162732992,0.193143,82841.0,82838.0,0.193147]
[1742162734482,0.205224,82836.0,82835.0,0.00057815]
[1742162735323,0.63974454,82836.0,82835.0,0.00057815]
[1742162735719,0.64369918,82836.0,82835.0,0.00057815]
[1742162736238,0.43847518,82836.0,82835.0,0.20780515]
[1742162736438,0.41955464,82836.0,82835.0,0.20780515]